Cogmind - Beta 16 @@@ ROGUE MODE // 2025.11.04 @ 07:41:40 Player: Dadrick Result: Escaped! Performance ------------- Evolutions (9) 4500 Regions Visited (25) 5000 Robots Destroyed (242) 1210 Value Destroyed (15357) 15357 Prototype IDs (42) 840 Alien Tech Used (0) 0 Bonus (19157) 19157 TOTAL SCORE: 46064 Bonus ------- Triggered Max Security 1000 High Alert Combat Kills 2280 Follower Combat Kills 6669 Entered Garrisons 1600 Used RIF Installer 4500 Aligned with FarCom 300 Win 3000 Friendly Fire -192 Cogmind --------- Core Integrity 1132/1600 Matter 202/300 Energy 100/100 System Corruption 1% Temperature Cool (1) Movement Flying (40) Location To Epsilon Eridani Parts ------- > --- POWER (1) -------- (None) > --- PROPULSION (2) --- Field Propulsion Array > --- UTILITY (20) ----- 2N-1CE's Frost Array Improved Targeting Computer Core Analyzer ECM Suite Improved System Shield Relay Coupler [Demolisher] (19) Relay Coupler [Specialist] (22) Relay Coupler [Specialist] (25) Relay Coupler [Heavy] (9) Relay Coupler [Proto] (9) Relay Coupler [Proto] (9) > --- WEAPON (2) ------- (None) > --- INVENTORY (5) ---- Micro Antimatter Reactor Enhanced Nova Cannon Heavy Gauss Cannon Advanced Micro-nuke Launcher Improved Remote Datajack Peak State ------------ > --- POWER ------------ Light Antimatter Reactor > --- PROPULSION ------- Myomer Leg Centrium Leg > --- UTILITY ---------- Huge Storage Unit Enhanced Optical Array Improved Targeting Computer Advanced Weapon Cycler Improved Medium Armor Plating Advanced Powered Armor Advanced Powered Armor Graphene Brace Advanced Force Field Relay Coupler [NC] Relay Coupler [Swarmer] Relay Coupler [Grunt] Relay Coupler [Brawler] Relay Coupler [Duelist] Relay Coupler [Demolisher] Relay Coupler [Specialist] Relay Coupler [Hunter] Relay Coupler [Heavy] > --- WEAPON ----------- Tri-rail Accelerator > --- INVENTORY -------- Light Antimatter Reactor Myomer Leg Myomer Leg Advanced Heat Sink Advanced Heat Sink Improved Matter Compressor Advanced Powered Armor Relay Coupler [NC] Relay Coupler [Demolisher] Relay Coupler [Specialist] Relay Coupler [Specialist] Relay Coupler [Proto] Relay Coupler [Proto] Relay Coupler [Proto] High-powered Tractor Beam Enhanced Nova Cannon Heavy Linear Accelerator Improved Remote Datajack Improved Remote Datajack Improved Remote Datajack Shock Maul Power Sword [Rating: 136] Favorites ----------- Power Particle Reactor Engine Ion Engine Power Core Enhanced Nuclear Core Reactor Particle Reactor Propulsion Armored Huge Wheel Treads Light Treads Leg Myomer Leg Wheel Armored Huge Wheel Flight Unit Field Propulsion Array Utility Hacking Suite Device Advanced Heat Sink Storage Huge Storage Unit Processor Enhanced Optical Array Hackware Hacking Suite Protection Improved Medium Armor Plating Weapon Improved Remote Datajack Energy Gun Small Laser Energy Cannon Advanced Beam Cannon Ballistic Gun Assault Rifle Ballistic Cannon Heavy Gauss Cannon Launcher Rocket Array Special Weapon Improved Remote Datajack Impact Weapon Power Maul Slashing Weapon Power Sword Build | -11 -10 -10 -10 -9 -8 -8 -7 -7 -7 -7 -6 -6 -5 -5 -5 -5 -4 -4 -4 -4 -3 -3 -2 -2 -1 ------- Run | Yrd Mat Min Exi Min Mat Gar Fac Gar Fac Gar Fac Gar Fac Gar Fac Gar Fac Was Fac Gar Res Gar Res Tes Acc Slots Evolved 18 | . . . . . 4 . 2 . . . 2 . 2 . . . 2 . . . 2 . 2 . 2 Power . | . . . . . . . . . . . . . . . . . . . . . . . . . . Propulsion . | . . . . . . . . . . . . . . . . . . . . . . . . . . Utility 18 | . . . . . 4 . 2 . . . 2 . 2 . . . 2 . . . 2 . 2 . 2 Weapon . | . . . . . . . . . . . . . . . . . . . . . . . . . . Parts Attached 261 | 8 10 2 . 3 17 16 12 14 5 16 5 13 3 14 9 17 17 2 6 15 9 23 16 1 8 Power 19 | 1 . 2 . 1 1 3 1 1 . 1 . 2 . . . 3 . . . 1 . 2 . . . Engine 5 | 1 . 1 . . 1 2 . . . . . . . . . . . . . . . . . . . Core 7 | . . 1 . 1 . 1 1 1 . . . 1 . . . 1 . . . . . . . . . Reactor 7 | . . . . . . . . . . 1 . 1 . . . 2 . . . 1 . 2 . . . Propulsion 29 | 2 3 . . . 5 3 . . . . . . . . . . 4 . 1 1 2 2 3 . 3 Treads 16 | 2 3 . . . 5 1 . . . . . . . . . . 1 . 1 . . . 1 . 2 Leg 4 | . . . . . . . . . . . . . . . . . . . . . . 2 2 . . Wheel 8 | . . . . . . 2 . . . . . . . . . . 3 . . 1 2 . . . . Hover . | . . . . . . . . . . . . . . . . . . . . . . . . . . Flight 1 | . . . . . . . . . . . . . . . . . . . . . . . . . 1 Utility 167 | 2 3 . . 1 7 7 6 10 2 13 4 10 3 11 7 11 11 2 3 12 7 18 12 1 4 Device 23 | 1 . . . . 1 3 . 1 . 1 . . . 2 . 1 2 . 1 3 . 5 . 1 1 Storage 4 | 1 1 . . . 1 . . . . . . . . 1 . . . . . . . . . . . Processor 4 | . . . . . . . . . . . . . . . . . 1 . . . 1 1 . . 1 Hackware 92 | . . . . . 2 . 3 6 1 9 2 8 3 5 5 7 7 1 . 8 5 8 10 . 2 Protection 44 | . 2 . . 1 3 4 3 3 1 3 2 2 . 3 2 3 1 1 2 1 1 4 2 . . Artifact . | . . . . . . . . . . . . . . . . . . . . . . . . . . Weapon 46 | 3 4 . . 1 4 3 5 3 3 2 1 1 . 3 2 3 2 . 2 1 . 1 1 . 1 Energy Gun 4 | 2 1 . . . . . . . . . . . . 1 . . . . . . . . . . . Energy Cannon 3 | . . . . . . . 2 . . . . . . . . . . . 1 . . . . . . Ballistic Gun 8 | 1 1 . . 1 4 1 . . . . . . . . . . . . . . . . . . . Ballistic Cannon 10 | . 1 . . . . 1 . 2 . 1 . 1 . . 1 2 . . . 1 . . . . . Launcher 5 | . . . . . . 1 . 1 1 . 1 . . . . . . . . . . . . . 1 Special Weapon 10 | . 1 . . . . . 2 . . 1 . . . 1 1 1 1 . 1 . . 1 . . . Impact Weapon 4 | . . . . . . . 1 . 1 . . . . 1 . . 1 . . . . . . . . Slashing Weapon 2 | . . . . . . . . . 1 . . . . . . . . . . . . . 1 . . Piercing Weapon . | . . . . . . . . . . . . . . . . . . . . . . . . . . Special Melee Weapon . | . . . . . . . . . . . . . . . . . . . . . . . . . . Unidentified Prototypes 10 | . . . . . 2 . 1 . 2 . 1 . . . . . 1 . . . 1 . . 1 1 Parts Lost 76 | . . 1 . 2 1 11 . . . 2 1 5 . 1 5 5 7 . . 1 7 9 12 . 6 Power 9 | . . 1 . . . 3 . . . . 1 1 . . . 1 . . . 1 . 1 . . . Propulsion 8 | . . . . . . 1 . . . . . . . . . . 2 . . . 2 2 . . 1 Utility 48 | . . . . 1 1 5 . . . 1 . 3 . 1 4 4 5 . . . 5 6 9 . 3 Weapon 11 | . . . . 1 . 2 . . . 1 . 1 . . 1 . . . . . . . 3 . 2 Highest Loss Streak 10 | . . 1 . 1 1 3 . . . 1 1 3 . 1 2 3 2 . . 1 2 3 10 . 3 To Critical Strikes . | . . . . . . . . . . . . . . . . . . . . . . . . . . Average Backups 18 | 1 11 14 13 11 12 16 22 21 20 19 20 19 19 19 18 20 20 21 21 22 20 22 20 5 4 Power 1 | . 1 1 1 1 1 . . 1 1 1 1 1 1 . 1 1 1 1 1 . 1 1 . . . Propulsion 1 | . 1 4 2 2 2 3 2 1 1 1 1 1 1 1 . . 1 2 1 . . 1 1 . . Utility 10 | . 3 5 6 5 5 8 12 11 12 11 12 13 14 12 11 13 12 11 11 13 12 12 11 1 . Weapon 4 | 1 4 4 4 3 3 4 5 5 4 4 5 3 3 3 4 2 2 4 4 5 4 4 4 2 2 Tool/Special . | . . . . . . . . . . . . . . . . . . . . . . . . . . Unused Backups 37 | . 1 3 1 . 1 3 2 5 1 1 . 5 . 2 1 5 . . . . 1 2 1 . 2 Power 5 | . . . . . . . . . . . . 2 . 1 . . . . . . . 1 . . 1 Propulsion 6 | . . 1 1 . . 2 1 . . . . . . . . . . . . . . 1 . . . Utility 19 | . . 1 . . 1 1 1 4 . . . 2 . 1 1 5 . . . . 1 . 1 . . Weapon 7 | . 1 1 . . . . . 1 1 1 . 1 . . . . . . . . . . . . 1 Tool/Special . | . . . . . . . . . . . . . . . . . . . . . . . . . . Average Slot Usage (%) 89 | . 99 99 100 100 90 91 90 88 91 87 84 87 89 92 92 91 90 88 82 84 82 94 90 49 48 Engine 1 | . 14 13 14 1 5 6 . . . . . . . . . . . . . . . . . . . Core 1 | . . . . 12 3 2 6 7 7 2 . 2 . . . . . . . . . . . . . Reactor 2 | . . . . . . . . . . 4 5 3 5 5 5 4 5 5 5 4 4 3 3 . . Treads 4 | . 28 28 28 28 18 11 . . . . . . . . . . . . . . . . . 4 2 Leg 1 | . . . . . . . . . . . . . . . . . . . . . . 7 7 . . Wheel 4 | . . . . . . 3 6 7 6 7 5 6 5 5 5 5 6 10 9 10 8 . . . . Device 6 | . 4 2 . . 5 5 7 . 1 1 . . 5 4 4 7 12 4 1 6 6 19 18 1 4 Storage 6 | . 14 14 14 14 9 9 7 7 7 7 6 6 5 5 5 5 5 5 5 5 4 4 3 . . Processor 2 | . . . . . . . . . . . . . . . . . 4 5 5 5 4 8 7 4 6 Hackware 29 | . . . . . 16 18 28 30 28 35 27 35 33 38 42 43 44 42 40 34 38 35 32 34 30 Protection 12 | . 9 11 14 14 15 18 16 21 23 14 26 21 20 18 14 9 1 5 5 10 7 4 7 . . Energy Gun 1 | . 13 13 14 6 . . . . . . . . . . . . . . . . . . . . . Ballistic Gun 3 | . 12 14 14 19 16 14 . . . . . . . . . . . . . . . . . . . Ballistic Cannon 2 | . . . . . . 2 . 3 1 6 3 4 5 4 3 3 2 . 1 3 2 3 2 . . Special Weapon 2 | . 1 . . 1 . . 5 3 5 4 3 1 5 1 4 2 2 5 2 1 1 1 2 . . Impact Weapon 1 | . . . . . . . 4 3 5 . . 2 . 3 1 3 4 5 3 . . . . . 2 Peak Build Rating 136 | 7 9 10 11 13 36 52 57 56 54 61 73 74 80 82 84 89 93 92 106 96 101 127 136 87 99 Average Rating 67 | 5 8 9 10 12 27 35 45 49 49 55 63 69 78 78 80 79 87 84 91 88 91 117 123 82 83 On Entrance 59 | . 7 9 10 11 13 33 48 48 46 54 61 60 74 80 79 82 88 84 92 87 93 89 127 77 87 Avg Prop Armor Cover (%) 34 | . . . . . . . . . . . . . . . . . . . . . . . . 36 34 Naked Turns . | . . . . . . . . . . . . . . . . . . . . . . . . . . Heaviest Build 176 | 11 30 31 31 31 99 103 108 124 109 129 138 138 129 143 150 130 137 152 165 167 152 156 176 3 7 Greatest Support 60 | 40 40 40 40 40 40 40 28 28 28 28 28 28 28 28 28 28 30 26 60 26 32 50 55 3 15 Greatest Overweight (x) 42 | . . . . . 2 3 3 4 3 4 4 4 4 5 5 4 11 5 15 6 42 42 3 . 2 Average Overweight (x) 2 | . . . . . . 2 3 3 3 3 4 3 4 4 4 3 3 4 5 5 3 2 1 . . Largest Inventory Capacity 25 | 8 15 15 15 15 25 25 25 25 25 25 25 25 25 25 25 25 25 25 25 25 25 25 25 5 5 Average Capacity 22 | 7 14 15 15 15 15 19 25 25 25 25 25 25 25 25 25 25 25 25 25 25 25 25 23 5 5 Most Carried 25 | 3 15 15 15 15 18 25 25 25 25 25 25 25 24 25 25 25 25 25 25 25 25 25 25 5 5 Average Carried 21 | 1 11 14 14 13 14 18 24 24 24 22 23 23 23 23 22 24 23 24 24 24 22 23 21 5 4 Final Capacity 25 | 8 15 15 15 15 15 25 25 25 25 25 25 25 25 25 25 25 25 25 25 25 25 25 5 5 5 Final Carried 25 | 3 15 15 15 13 15 25 24 25 24 25 25 24 23 24 20 24 24 25 24 25 19 25 5 5 5 Class Distribution -------------------- 64% | Botlord-Mutant 14% | Bothacker-Mutant 10% | Mutant 6% | Hacker-Mutant 4% | Scavenger-Mutant Dominant Class ---------------- Mutant | -10/Materials Mutant | -10/Mines Mutant | -10/Exiles Mutant | -9/Mines Hacker-Mutant | -8/Materials Scavenger-Mutant | -8/Garrison Bothacker-Mutant | -7/Factory Bothacker-Mutant | -7/Garrison Bothacker-Mutant | -7/Factory Botlord-Mutant | -7/Garrison Botlord-Mutant | -6/Factory Botlord-Mutant | -6/Garrison Botlord-Mutant | -5/Factory Botlord-Mutant | -5/Garrison Botlord-Mutant | -5/Factory Botlord-Mutant | -5/Garrison Botlord-Mutant | -4/Factory Botlord-Mutant | -4/Waste Botlord-Mutant | -4/Factory Botlord-Mutant | -4/Garrison Botlord-Mutant | -3/Research Botlord-Mutant | -3/Garrison Botlord-Mutant | -2/Research Botlord-Mutant | -2/Testing Botlord-Mutant | -1/Access Resources | -11 -10 -10 -10 -9 -8 -8 -7 -7 -7 -7 -6 -6 -5 -5 -5 -5 -4 -4 -4 -4 -3 -3 -2 -2 -1 ----------- Run | Yrd Mat Min Exi Min Mat Gar Fac Gar Fac Gar Fac Gar Fac Gar Fac Gar Fac Was Fac Gar Res Gar Res Tes Acc Matter Collected 13210 | 286 337 173 . 77 533 1190 266 694 139 767 259 859 . 539 974 775 679 109 738 943 709 1654 392 . 118 Remotely 889 | . . . . . . 196 . . . . . . . . . . . . 113 . . 570 10 . . Salvage Created 8914 | 117 412 272 . 144 1167 1027 284 470 93 240 80 159 . 288 348 355 320 288 519 677 492 759 247 . 156 Parts 462 | 8 24 17 . 9 78 55 8 30 5 12 2 13 . 5 22 20 12 5 24 31 12 48 12 . 10 Haulers Intercepted 7 | . 2 . . . 4 . . . 1 . . . . . . . . . . . . . . . . Recyclers Shooed 6 | 1 2 . . . 1 . . . 1 . . . . . . . 1 . . . . . . . . Parts Field Recycled . | . . . . . . . . . . . . . . . . . . . . . . . . . . Retrieved Matter . | . . . . . . . . . . . . . . . . . . . . . . . . . . Parts Self-Destructed . | . . . . . . . . . . . . . . . . . . . . . . . . . . Prevented . | . . . . . . . . . . . . . . . . . . . . . . . . . . Parts Restored . | . . . . . . . . . . . . . . . . . . . . . . . . . . Kills | -11 -10 -10 -10 -9 -8 -8 -7 -7 -7 -7 -6 -6 -5 -5 -5 -5 -4 -4 -4 -4 -3 -3 -2 -2 -1 ------- Run | Yrd Mat Min Exi Min Mat Gar Fac Gar Fac Gar Fac Gar Fac Gar Fac Gar Fac Was Fac Gar Res Gar Res Tes Acc Combat Hostiles Destroyed 195 | . 13 9 . 4 15 23 4 13 . 8 6 10 . 1 5 9 5 1 11 18 6 27 2 . 5 Melee 2 | . . . . . . . . . . . . . . . . . . 1 . 1 . . . . . Guns 58 | . 13 9 . 4 15 14 1 . . . . . . . . 2 . . . . . . . . . Cannons 105 | . . . . . . 2 2 9 . 8 2 2 . 1 5 7 4 . 11 17 6 27 2 . . AOE 28 | . . . . . . 7 . 4 . . 4 8 . . . . . . . . . . . . 5 Classes Destroyed 19 | 2 3 1 . 1 4 4 1 1 . . . . . . . . . 1 . 1 . . . . . Worker 13 | . . . . . 1 . . . 2 . 1 . . . . . 4 . 2 . 1 . . . 2 Builder 6 | . . . . . 1 . . . 2 . . . . . . . . . 2 . 1 . . . . Tunneler 1 | 1 . . . . . . . . . . . . . . . . . . . . . . . . . Hauler 7 | . 2 . . . 4 . . . 1 . . . . . . . . . . . . . . . . Recycler 8 | 1 . . . . 1 . 1 . . . . . . . 1 . . . 1 . 2 . 1 . . Mechanic 1 | . . 1 . . . . . . . . . . . . . . . . . . . . . . . Operator 1 | . . . . . . . 1 . . . . . . . . . . . . . . . . . . Watcher 8 | . . . . . 3 1 . 1 . . . . . 2 . . . . . . . . . . 1 Swarmer 72 | . 9 5 . . . 6 . 4 . . 5 9 . . . 1 . . 2 6 1 19 . . 5 Cutter 4 | . . . . . . . . . . . . . . . . . . . . 3 . 1 . . . Grunt 58 | . 4 4 . 3 11 4 1 3 . 3 . 1 . . 1 . 5 . 5 7 . 5 1 . . Brawler 2 | . . . . . . 1 1 . . . . . . . . . . . . . . . . . . Duelist 2 | . . . . . . 1 . 1 . . . . . . . . . . . . . . . . . Sentry 18 | . . . . . 4 7 . 2 . . . . . 1 . 2 . . . 1 1 . . . . Specialist 1 | . . . . . . . . 1 . . . . . . . . . . . . . . . . . Hunter 5 | . . . . . . 1 . 1 . . . . . . . . . . . . 1 2 . . . Programmer 33 | . . . . . . 3 2 3 . 5 1 . . . 4 6 . . 4 1 3 . 1 . . Compactor 1 | . . . . . . . . . . . . . . . . . . 1 . . . . . . . Assembled 1 | . . . . 1 . . . . . . . . . . . . . . . . . . . . . Thug 1 | . . . . . . . . . . . . . . . . . . . . . . 1 . . . Best Kill Streak 7 | 2 3 5 . 3 5 7 2 3 1 3 4 6 . 1 3 3 4 1 3 4 3 5 1 . 5 Combat Bots Only 7 | . 3 4 . 3 4 7 2 3 . 3 4 6 . 1 2 3 2 1 3 4 3 5 1 . 5 Max Kills in Single Turn 6 | 1 1 1 . 1 1 3 1 4 1 1 3 6 . 1 1 1 1 1 1 1 1 1 1 . 4 Gunslinging . | . . . . . . . . . . . . . . . . . . . . . . . . . . Exploded 6 | . . . . . . 3 . 2 . . 3 6 . . . . . . . . . . . . 4 Melee 1 | . . . . . . . . . . . . . . . . . . 1 . 1 . . . . . Uniques/NPCs Destroyed . | . . . . . . . . . . . . . . . . . . . . . . . . . . Combat | -11 -10 -10 -10 -9 -8 -8 -7 -7 -7 -7 -6 -6 -5 -5 -5 -5 -4 -4 -4 -4 -3 -3 -2 -2 -1 -------- Run | Yrd Mat Min Exi Min Mat Gar Fac Gar Fac Gar Fac Gar Fac Gar Fac Gar Fac Was Fac Gar Res Gar Res Tes Acc Hostile Shots Fired 1658 | . 83 26 . 32 74 147 21 94 11 82 134 87 2 14 120 104 49 . 86 59 75 134 106 4 114 Missed 517 | . 15 8 . 9 23 32 4 31 3 29 60 22 2 3 41 30 15 . 27 15 23 43 28 3 51 Hits 1141 | . 68 18 . 23 51 115 17 63 8 53 74 65 . 11 79 74 34 . 59 44 52 91 78 1 63 Melee 6 | . . . . 2 . . . . . . . . . . . . . . . 1 . 3 . . . Projectile 1135 | . 68 18 . 21 51 115 17 63 8 53 74 65 . 11 79 74 34 . 59 43 52 88 78 1 63 AOE 15 | . . . . . . 1 . 1 . 3 . . . . 7 . . . . 1 . 2 . . . Critical Strikes 43 | . . . . . 1 2 2 4 . . . 3 . 1 4 4 7 . 4 3 2 4 . . 2 Actively Blocked 17 | . . . . . . 1 . . . . . . . . . 4 7 . . 1 . 4 . . . Part Disruptions 7 | . . . . 1 . 1 . . . . . . . . 5 . . . . . . . . . . Damage Taken 18663 | . 611 191 . 306 886 2381 247 699 65 815 681 1123 . 241 1086 1528 817 . 742 686 1062 1563 1043 28 1862 Core 2791 | . 87 28 . 12 16 330 15 129 19 135 76 153 . 41 97 292 178 . 39 72 173 198 233 . 468 Absorbed by Shields 1469 | . . . . . . . . 62 . 58 12 8 . 6 406 25 . . . 185 4 660 43 . . Redirected to Shielding 64 | . . . . . . 64 . . . . . . . . . . . . . . . . . . . Ignored by Resistances 507 | . . . . . . . . . . . 62 . . . . 20 . . 378 31 16 . . . . Regen/Repaired (Parts) 868 | . 24 . . . 113 . 278 . 123 . 107 . . . 223 . . . . . . . . . . Core Remaining (%) 67 | 100 . . . 49 . 37 . . . 57 . 73 . . . 57 . . . 74 . 71 . 83 70 Volleys Fired 1097 | 7 86 25 . 22 54 128 28 51 5 70 23 40 1 81 65 50 53 7 44 66 49 118 19 . 5 Largest 2 | 2 2 2 . 2 2 2 2 1 1 1 1 1 1 1 1 1 1 1 1 1 1 1 1 . 1 Hottest 136 | 90 100 100 . 100 100 65 136 65 40 65 65 65 5 69 65 65 65 7 120 70 70 70 120 . 30 Shots Fired 1419 | 14 154 43 . 40 137 221 40 51 5 71 23 49 1 81 66 57 53 7 44 66 49 123 19 . 5 Gun 598 | 14 141 36 . 36 132 180 2 . . . . 7 . 44 1 5 . . . . . . . . . Cannon 516 | . 3 . . . . 33 32 29 2 38 14 25 . 9 42 37 27 . 39 42 36 97 11 . . Launcher 21 | . . . . . . 8 . 6 . . 2 3 . . . . . . . . . . . . 2 Special 284 | . 10 7 . 4 5 . 6 16 3 33 7 14 1 28 23 15 26 7 5 24 13 26 8 . 3 Kinetic 930 | 6 76 18 . 25 132 213 3 29 2 38 14 32 . 9 43 42 27 . 38 42 36 97 8 . . Thermal 210 | 8 78 25 . 15 5 . 31 . . . . . . 44 . . . . 1 . . . 3 . . Explosive 21 | . . . . . . 8 . 6 . . 2 3 . . . . . . . . . . . . 2 Electromagnetic . | . . . . . . . . . . . . . . . . . . . . . . . . . . Robot Hit Streak 54 | 8 14 9 . 6 19 54 18 7 8 11 9 13 7 19 13 13 5 9 9 13 11 11 11 . 9 Robot Miss Streak 7 | 1 6 2 . 2 5 5 3 4 1 3 1 2 . 2 3 1 3 1 4 7 3 4 1 . . Penetration Max 1 | . . . . . 1 . . . . . . . . . . 1 . . . . . . . . . Secondary Targets 6 | . 2 2 . 1 . 1 . . . . . . . . . . . . . . . . . . . Max Gunslinging Chain 1 | . 1 1 . 1 . 1 . . . . . . . . . . . . . . . . . . . Autonomous 66 | . . . . . 36 15 1 . . . . 7 . . 1 6 . . . . . . . . . Shots Hit Robots 990 | 10 84 25 . 27 82 159 26 32 10 47 17 30 1 72 41 52 37 21 39 50 24 79 17 1 7 Core Hits 374 | 4 28 16 . 11 41 60 7 22 . 8 12 24 . 13 7 13 11 1 19 20 4 42 4 . 7 Critical Kills 4 | . . . . . 1 1 1 . . . . . . . . . . . 1 . . . . . . Critical Parts Destroyed 16 | . . . . . . 1 1 . . . 1 1 . 1 . 1 1 4 2 . 2 . . . 1 Critical Strikes 53 | . . . . . 1 3 2 . . 3 2 1 . 5 3 5 4 6 5 5 4 2 1 . 1 Burn 3 | . . . . . . . . . . . . . . 3 . . . . . . . . . . . Meltdown 1 | . . . . . . . 1 . . . . . . . . . . . . . . . . . . Destroy 4 | . . . . . 1 2 . . . . . 1 . . . . . . . . . . . . . Blast 28 | . . . . . . 1 . . . 3 1 . . 1 3 4 3 . 2 5 2 2 1 . . Smash 17 | . . . . . . . 1 . . . 1 . . 1 . 1 1 6 3 . 2 . . . 1 Melee Attacks 157 | . . . . . . . 27 15 16 . 1 2 . 8 2 15 12 24 11 2 3 2 2 6 9 Impact 144 | . . . . . . . 27 15 14 . 1 2 . 8 2 15 12 24 11 2 3 2 . . 6 Slashing 13 | . . . . . . . . . 2 . . . . . . . . . . . . . 2 6 3 Piercing . | . . . . . . . . . . . . . . . . . . . . . . . . . . Sneak Attacks 39 | . . . . . . . 3 . 7 . 1 . . 1 . . 1 15 4 . 2 . 1 1 3 Combat Hostiles 15 | . . . . . . . . . . . . . . . . . . 15 . . . . . . . Follow-up Attacks . | . . . . . . . . . . . . . . . . . . . . . . . . . . Damage Inflicted 29305 | 86 837 326 . 307 1792 2859 564 1616 632 1224 843 1422 . 1060 1233 2069 932 1657 2251 1841 1278 2742 705 112 917 Guns 6583 | 86 805 315 . 307 1792 2058 63 . . . . 188 . 764 35 170 . . . . . . . . . Cannons 15759 | . 32 . . . . 347 388 890 31 1224 505 520 . 164 1198 1594 829 . 1761 1797 1104 2742 633 . . Explosions 2662 | . . . . . . 454 . 726 . . 276 714 . . . . . . . . . . . . 492 Melee 4274 | . . . . . . . 113 . 601 . 62 . . 132 . 305 103 1657 490 44 158 . 72 112 425 Ramming 27 | . . 11 . . . . . . . . . . . . . . . . . . 16 . . . . Kinetic 20309 | 44 396 137 . 217 1792 2405 86 890 31 1224 505 708 . 164 1233 1764 829 . 1761 1797 1104 2742 480 . . Thermal 2033 | 42 441 178 . 90 . . 365 . . . . . . 764 . . . . . . . . 153 . . Explosive 2662 | . . . . . . 454 . 726 . . 276 714 . . . . . . . . . . . . 492 Electromagnetic . | . . . . . . . . . . . . . . . . . . . . . . . . . . Impact 4026 | . . . . . . . 113 . 537 . 62 . . 132 . 305 103 1657 490 44 158 . . . 425 Slashing 248 | . . . . . . . . . 64 . . . . . . . . . . . . . 72 112 . Piercing . | . . . . . . . . . . . . . . . . . . . . . . . . . . Highest Corruption 32 | . . . . . . 2 . 1 3 3 . 1 . . 5 8 . . 3 1 4 5 32 32 1 Average Corruption 3 | . . . . . . 1 . 1 2 1 . 1 . . 4 6 . . 1 1 3 4 11 32 1 Corruption Purged 8 | . . . . . . . . . . 5 . . . . . . . . 3 . . . . . . Corruption Blocked . | . . . . . . . . . . . . . . . . . . . . . . . . . . Effects 261 | . . . . . . 5 . 2 11 19 . 13 . . 18 52 . . 5 13 9 100 8 4 2 Message Errors 68 | . . . . . . . . . 8 5 . 2 . . 4 16 . . . 5 3 21 1 2 1 Matter Fused 58 | . . . . . . 1 . . 2 5 . 4 . . 3 14 . . 1 1 3 20 3 . 1 Heat Flow Errors 28 | . . . . . . 2 . . . 3 . 1 . . 2 5 . . 1 3 . 9 1 1 . Energy Discharges 38 | . . . . . . 1 . 1 . 2 . . . . 4 8 . . 3 3 1 14 1 . . Parts Rejected 4 | . . . . . . . . . . . . 1 . . . 1 . . . . . 2 . . . Parts Fused 3 | . . . . . . . . . . . . 1 . . . . . . . . . 2 . . . Data Loss (minor) 28 | . . . . . . 1 . . . 2 . 1 . . 2 5 . . . 1 . 15 . 1 . Data Loss (major) 18 | . . . . . . . . 1 1 . . 1 . . 1 1 . . . . 2 10 1 . . Misfires 10 | . . . . . . . . . . 1 . 2 . . . 2 . . . . . 5 . . . Alerts 5 | . . . . . . . . . . 1 . . . . 2 . . . . . . 2 . . . Misdirections 1 | . . . . . . . . . . . . . . . . . . . . . . . 1 . . Overload Shots . | . . . . . . . . . . . . . . . . . . . . . . . . . . Overflow Damage 3504 | . 2 . . . . 4 75 108 424 246 179 21 . 107 232 150 108 489 395 54 473 194 60 77 106 Projectiles 1553 | . 2 . . . . . 22 96 . 246 117 . . . 232 117 5 . 154 35 315 194 18 . . Explosions 38 | . . . . . . 4 . 12 . . . 21 . . . . . . . . . . . . 1 Melee 1913 | . . . . . . . 53 . 424 . 62 . . 107 . 33 103 489 241 19 158 . 42 77 105 Knockbacks 105 | . . . . . . 1 . 2 1 10 3 3 . . 11 4 7 . 19 7 4 32 . . 1 Impact 5 | . . . . . . . . . 1 . 1 . . . . . 1 . 1 . . . . . 1 Kinetic 91 | . . . . . . 1 . 2 . 10 2 3 . . 9 4 6 . 16 6 4 28 . . . Secondary 9 | . . . . . . . . . . . . . . . 2 . . . 2 1 . 4 . . . Self-Inflicted Damage 288 | . . . . . 81 56 . 31 . . 28 84 . . . . . . . . 8 . . . . Shots 10 | . . . . . 1 2 . 1 . . 1 5 . . . . . . . . . . . . . Rammed 3 | . . 2 . . . . . . . . . . . . . . . . . . 1 . . . . Targets Rammed 3 | . . 2 . . . . . . . . . . . . . . . . . . 1 . . . . Kicked . | . . . . . . . . . . . . . . . . . . . . . . . . . . Crushed . | . . . . . . . . . . . . . . . . . . . . . . . . . . Highest Temperature 316 | 50 257 141 . 160 169 316 225 146 . 251 116 98 . 285 213 268 . . 241 206 5 203 99 110 . Average Temperature 65 | 27 69 53 . 69 38 87 124 28 . 69 33 28 . 87 33 108 . . 92 32 3 51 38 110 . Received Heat Transfer 2770 | . 141 69 . 222 396 417 36 114 12 137 144 132 . 81 132 49 147 . 206 66 45 152 54 9 9 Effects 4 | . 1 . . . . 1 1 . . . . . . 1 . . . . . . . . . . . Energy Bleed 2 | . . . . . . 1 1 . . . . . . . . . . . . . . . . . . Interference 2 | . 1 . . . . . . . . . . . . 1 . . . . . . . . . . . Siege Activations . | . . . . . . . . . . . . . . . . . . . . . . . . . . Martial Activations . | . . . . . . . . . . . . . . . . . . . . . . . . . . Shielding Activations . | . . . . . . . . . . . . . . . . . . . . . . . . . . Robots Disrupted . | . . . . . . . . . . . . . . . . . . . . . . . . . . Combat Hostiles . | . . . . . . . . . . . . . . . . . . . . . . . . . . Robots Corrupted 8 | . . . . . . . . . 2 . 1 . . 1 . . 1 . 1 . . . . . 2 Combat Hostiles 1 | . . . . . . . . . . . . . . . . . 1 . . . . . . . . Parts Fried 13 | . . . . . . . 2 . 3 . . . . . . . 1 . 4 1 1 . . . 1 Impact Corruptions 45 | . . . . . . . 2 . 11 . 2 . . 3 . 1 2 6 9 1 3 1 . . 4 Robots Melted 1 | . . . . . . . 1 . . . . . . . . . . . . . . . . . . Combat Hostiles 1 | . . . . . . . 1 . . . . . . . . . . . . . . . . . . Parts Melted 8 | . 1 1 . . . . 6 . . . . . . . . . . . . . . . . . . Heat Transferred 3977 | 100 925 375 . 200 . . 592 . . . . . . 1702 . . . . . . . . 83 . . Parts Sabotaged . | . . . . . . . . . . . . . . . . . . . . . . . . . . Parts Stolen . | . . . . . . . . . . . . . . . . . . . . . . . . . . Parts Stripped . | . . . . . . . . . . . . . . . . . . . . . . . . . . Power Chain Reactions . | . . . . . . . . . . . . . . . . . . . . . . . . . . Alert | -11 -10 -10 -10 -9 -8 -8 -7 -7 -7 -7 -6 -6 -5 -5 -5 -5 -4 -4 -4 -4 -3 -3 -2 -2 -1 ------- Run | Yrd Mat Min Exi Min Mat Gar Fac Gar Fac Gar Fac Gar Fac Gar Fac Gar Fac Was Fac Gar Res Gar Res Tes Acc Maximum Alert Level 5 | . . . . . . 4 2 3 2 3 2 4 2 5 4 5 4 2 . 4 2 5 5 5 4 Low Security (%) 33 | 100 100 100 . 100 100 19 53 25 96 18 87 9 . . . . . 57 100 31 . . . . . Level 1 10 | . . . . . . 31 28 10 1 45 6 3 . 3 . . . 38 . 14 2 11 . . . Level 2 19 | . . . . . . 34 17 29 2 23 6 48 100 5 . 2 27 3 . 23 97 24 . . . Level 3 15 | . . . . . . 10 . 35 . 11 . 30 . 1 39 46 42 . . 22 . 12 . 1 95 Level 4 9 | . . . . . . 5 . . . . . 7 . 19 60 37 30 . . 6 . 12 19 . 4 Level 5 11 | . . . . . . . . . . . . . . 69 . 13 . . . . . 38 80 . . High Security . | . . . . . . . . . . . . . . . . . . . . . . . . . . Max Security . | . . . . . . . . . . . . . . . . . . . . . . . . 98 . Peak Influence 3434 | 5 125 120 . 50 173 1101 577 981 514 846 443 1232 646 2524 1325 1849 1240 414 99 1211 676 3434 1931 1651 1107 Initial 1931 | . . 12 . . . 63 577 74 514 . 443 90 646 397 1325 693 970 414 . 13 669 312 1931 819 1100 Average 667 | . 33 17 . 4 90 404 229 515 59 368 114 634 614 1717 1133 1176 907 183 45 499 487 1434 1732 1627 1003 Influence Increases 18471 | 10 337 220 . 73 522 1248 178 967 224 986 518 1312 12 2297 538 1286 1358 18 465 1388 448 3412 67 51 536 Destroy 0b10 Robot/C 7380 | . 260 180 . 60 300 540 100 280 80 380 280 500 . 840 280 600 520 . 220 700 240 880 40 . 100 Destroy 0b10 Robot/NC 330 | 10 10 5 . . 50 20 10 5 25 . 10 . . 20 20 . 80 . 25 . 20 . 5 . 15 Destroy Leader 816 | . 44 30 . 10 94 30 30 30 22 40 60 30 . 60 62 20 62 . 50 30 50 40 10 . 12 Allied During Kill 2277 | . . . . . . 13 1 55 24 151 88 71 . 773 101 158 269 . . 190 46 321 . . 16 Successful Hack 410 | . 14 . . . 11 5 22 30 52 . 24 8 8 5 12 20 11 . 39 24 27 20 . . 78 Disable Machine 390 | . . . . . 30 45 . 15 15 . 15 45 . 15 . . 120 . 30 . . 15 . 45 . Anti-Garrison Action 5100 | . . . . . . 500 . 400 . 400 . 550 . 500 . 300 . . . 400 . 2050 . . . Destroy Structure 1348 | . 9 5 . 3 37 80 15 92 6 15 41 108 4 69 48 173 296 18 56 44 50 71 12 6 90 Partial Spotted 15 | . . . . . . . . . . . . . . . . . . . . . . . . . 15 Lose Combat Pursuer 405 | . . . . . . 15 . 60 . . . . . 15 15 15 . . 45 . 15 15 . . 210 Influence Decreases 18276 | 10 306 251 . 73 424 245 1172 93 1205 140 1235 209 676 341 2071 428 2023 1202 446 216 1222 395 2043 639 1211 Entered New Map 8859 | . . 19 . . . 35 524 33 467 . 403 39 586 171 1199 298 879 770 . 6 522 105 1503 639 661 Time Decay 5566 | 10 296 217 . 63 379 . 618 . 357 . 512 . 90 . 482 . 474 432 406 . 490 . 270 . 470 Lost Part 750 | . . 10 . 10 10 110 . . . 20 10 50 . 10 50 50 70 . . 10 70 90 120 . 60 Lost Ally 2351 | . 10 5 . . 35 100 30 60 81 120 160 120 . 160 340 80 300 . 40 200 140 200 150 . 20 Purge Threat 750 | . . . . . . . . . 300 . 150 . . . . . 300 . . . . . . . . Squads Dispatched 50 | . 2 1 . . 7 . 6 . 3 . 4 . . . 8 . 3 . 4 . 2 . 6 . 4 Investigation 3 | . 1 . . . . . . . . . . . . . 1 . . . 1 . . . . . . Extermination 19 | . . . . . . . 4 . 2 . 3 . . . 3 . . . 2 . 1 . 1 . 3 Reinforcement 13 | . 1 . . . 4 . 2 . 1 . . . . . . . 1 . 1 . . . 2 . 1 Assault 10 | . . 1 . . . . . . . . . . . . 4 . 1 . . . 1 . 3 . . Garrison 5 | . . . . . 3 . . . . . 1 . . . . . 1 . . . . . . . . Intercept . | . . . . . . . . . . . . . . . . . . . . . . . . . . Searches Triggered . | . . . . . . . . . . . . . . . . . . . . . . . . . . Unchained Authorized 1 | . . . . . . . . . . . . . . . . . . . . . . . 1 . . Construction Impeded 1 | . . . . . . . . . 1 . . . . . . . . . . . . . . . . Haulers Reinforced 2 | . . . . . . . 1 . . . . . . . . . 1 . . . . . . . . Active Scanning Responses . | . . . . . . . . . . . . . . . . . . . . . . . . . . Cargo Convoy Interrupts . | . . . . . . . . . . . . . . . . . . . . . . . . . . Alert ID Control Effect 6 | . . . . . . . . . . . . . . . . . . . . . . . 2 . 4 Stealth | -11 -10 -10 -10 -9 -8 -8 -7 -7 -7 -7 -6 -6 -5 -5 -5 -5 -4 -4 -4 -4 -3 -3 -2 -2 -1 --------- Run | Yrd Mat Min Exi Min Mat Gar Fac Gar Fac Gar Fac Gar Fac Gar Fac Gar Fac Was Fac Gar Res Gar Res Tes Acc Distress Signals 19 | . 2 . . . 4 1 . 4 1 . . . . 1 . . 1 . . . . . 1 . 4 Communications Jammed 257 | . . . . . . . . . . . . . . . 85 . 115 . 1 . 41 . 15 . . Distress Signals 257 | . . . . . . . . . . . . . . . 85 . 115 . 1 . 41 . 15 . . Times Spotted 584 | . 22 11 . 6 35 30 11 27 7 33 21 31 4 41 28 33 44 6 16 46 22 55 18 6 31 Peak Tracking Total 13 | . 4 4 . 3 5 4 5 4 1 5 5 8 3 3 6 4 7 2 5 13 3 7 7 4 8 Tactical Retreats 22 | . . . . 1 . 1 . 4 . . . . . 1 1 1 . . 3 . 1 1 . . 8 Traps | -11 -10 -10 -10 -9 -8 -8 -7 -7 -7 -7 -6 -6 -5 -5 -5 -5 -4 -4 -4 -4 -3 -3 -2 -2 -1 ------- Run | Yrd Mat Min Exi Min Mat Gar Fac Gar Fac Gar Fac Gar Fac Gar Fac Gar Fac Was Fac Gar Res Gar Res Tes Acc Traps Triggered 64 | . . . . . . 4 2 3 1 5 1 8 . 11 1 8 2 . 2 1 1 11 1 . 2 Indirectly . | . . . . . . . . . . . . . . . . . . . . . . . . . . Trap Hack Attempts . | . . . . . . . . . . . . . . . . . . . . . . . . . . Triggered . | . . . . . . . . . . . . . . . . . . . . . . . . . . Disarmed . | . . . . . . . . . . . . . . . . . . . . . . . . . . Reprogrammed . | . . . . . . . . . . . . . . . . . . . . . . . . . . Reused . | . . . . . . . . . . . . . . . . . . . . . . . . . . Traps Extracted . | . . . . . . . . . . . . . . . . . . . . . . . . . . Installed . | . . . . . . . . . . . . . . . . . . . . . . . . . . Triggered . | . . . . . . . . . . . . . . . . . . . . . . . . . . Machines | -11 -10 -10 -10 -9 -8 -8 -7 -7 -7 -7 -6 -6 -5 -5 -5 -5 -4 -4 -4 -4 -3 -3 -2 -2 -1 ---------- Run | Yrd Mat Min Exi Min Mat Gar Fac Gar Fac Gar Fac Gar Fac Gar Fac Gar Fac Was Fac Gar Res Gar Res Tes Acc Machines Disabled 67 | . . . . . 2 5 . 4 1 4 1 12 . 6 . 4 15 . 2 4 . 4 . 3 . Max in Single Turn 4 | . . . . . 2 1 . 1 1 1 1 1 . 1 . 1 4 . 1 1 . 1 . 1 . Garrison Access 4 | . . . . . . . . . . . . . . . . . 1 . . . . . . . 3 Garrison Relay 31 | . . . . . . 3 . 3 . 4 . 5 . 4 . 4 . . . 4 . 4 . . . Machines Repaired . | . . . . . . . . . . . . . . . . . . . . . . . . . . Machines Dismantled . | . . . . . . . . . . . . . . . . . . . . . . . . . . Machines Sabotaged . | . . . . . . . . . . . . . . . . . . . . . . . . . . Overloaded Fab Kills . | . . . . . . . . . . . . . . . . . . . . . . . . . . Hacking | -11 -10 -10 -10 -9 -8 -8 -7 -7 -7 -7 -6 -6 -5 -5 -5 -5 -4 -4 -4 -4 -3 -3 -2 -2 -1 --------- Run | Yrd Mat Min Exi Min Mat Gar Fac Gar Fac Gar Fac Gar Fac Gar Fac Gar Fac Was Fac Gar Res Gar Res Tes Acc Machines Accessed 101 | . 9 1 2 . 5 2 13 4 11 2 5 2 3 2 6 3 4 . 4 3 4 3 . . 13 Terminals 61 | . 7 . . . 3 2 9 4 6 2 1 2 . 2 2 3 2 . 2 3 2 3 . . 6 Fabricators . | . . . . . . . . . . . . . . . . . . . . . . . . . . Repair Stations 10 | . 1 . . . 1 . 2 . 3 . 1 . . . 1 . 1 . . . . . . . . Recycling Units 9 | . 1 . . . . . 1 . . . 1 . 1 . 1 . . . 1 . 1 . . . 2 Scanalyzers 4 | . . . . . . . . . 1 . 1 . 1 . 1 . . . . . . . . . . Garrison Access 14 | . . . . . 1 . 1 . 1 . 1 . 1 . 1 . 1 . 1 . 1 . . . 5 Total Hacks 236 | . 32 1 2 . 19 2 40 7 27 5 12 3 5 3 10 5 11 . 11 4 10 4 . . 23 Successful 126 | . 15 1 2 . 11 2 24 4 15 1 6 1 3 2 5 3 7 . 5 3 5 3 . . 8 Failed 110 | . 17 . . . 8 . 16 3 12 4 6 2 2 1 5 2 4 . 6 1 5 1 . . 15 Catastrophic 20 | . 2 . . . . . 1 . 2 . 1 . . . 1 1 1 . 1 . 1 . . . 9 Database Lockouts . | . . . . . . . . . . . . . . . . . . . . . . . . . . Manual 77 | . 25 . 1 . 5 . 16 . 7 . 4 . . . 3 . 4 . 1 . 3 . . . 8 Terminals 158 | . 28 . . . 14 2 32 7 16 5 6 3 . 3 3 5 7 . 5 4 4 4 . . 10 Fabricators . | . . . . . . . . . . . . . . . . . . . . . . . . . . Repair Stations 25 | . 2 . . . 2 . 6 . 8 . 2 . . . 3 . 2 . . . . . . . . Recycling Units 19 | . 2 . . . . . 1 . . . 2 . 3 . 1 . . . 5 . 3 . . . 2 Scanalyzers 6 | . . . . . . . . . 2 . 1 . 1 . 2 . . . . . . . . . . Garrison Access 25 | . . . . . 3 . 1 . 1 . 1 . 1 . 1 . 2 . 1 . 3 . . . 11 Terminal Hacks 58 | . 5 1 2 . 5 2 12 4 4 1 2 1 . 2 . 3 3 . 1 3 1 3 . . 3 Record 1 | . . . 1 . . . . . . . . . . . . . . . . . . . . . . Part Schematic 1 | . . . . . . . 1 . . . . . . . . . . . . . . . . . . Robot Analysis 3 | . 3 . . . . . . . . . . . . . . . . . . . . . . . . Prototype ID Bank 2 | . 1 . . . . . . . . . . . . . . . 1 . . . . . . . . Open Door 8 | . . 1 . . . 1 . 1 . 1 . . . 1 . 1 . . . . . 1 . . 1 Branch Access Points 1 | . . . . . . . . . . . . . . . . . . . . . . . . . 1 Emergency Access Points 6 | . . . . . . . . 1 . . . 1 . 1 . 1 . . . 1 . 1 . . . Machine Index 2 | . . . . . . . . . 1 . . . . . . . . . . . 1 . . . . Terminal Index 1 | . 1 . . . . . . . . . . . . . . . . . . . . . . . . Garrison Index 1 | . . . . . . . 1 . . . . . . . . . . . . . . . . . . Unreport Threat 5 | . . . . . . . . . 2 . 1 . . . . . 2 . . . . . . . . Locate Traps 4 | . . . . . 2 . 2 . . . . . . . . . . . . . . . . . . Recall Extermination 2 | . . . . . . . 2 . . . . . . . . . . . . . . . . . . Hauler Manifests 1 | . . . . . 1 . . . . . . . . . . . . . . . . . . . . Registered Components 4 | . . . . . . . 1 . 1 . 1 . . . . . . . 1 . . . . . . Registered Prototypes 1 | . . . . . . . 1 . . . . . . . . . . . . . . . . . . Zone Layout 7 | . . . . . 2 . 4 . . . . . . . . . . . . . . . . . 1 Garrison Registry 4 | . . . . . . 1 . 1 . . . . . . . . . . . 1 . 1 . . . Patrol Navigation 2 | . . . . . . . . 1 . . . . . . . 1 . . . . . . . . . Security Stations 1 | . . . . . . . . . . . . . . . . . . . . 1 . . . . . Proto ID Catalog 1 | . . . 1 . . . . . . . . . . . . . . . . . . . . . . Fabricator Hacks . | . . . . . . . . . . . . . . . . . . . . . . . . . . Repair Station Hacks 18 | . 2 . . . 2 . 5 . 4 . 2 . . . 2 . 1 . . . . . . . . Scan Component 11 | . 1 . . . 1 . 3 . 3 . 1 . . . 1 . 1 . . . . . . . . Repair 7 | . 1 . . . 1 . 2 . 1 . 1 . . . 1 . . . . . . . . . . Recycling Unit Hacks 8 | . 2 . . . . . 1 . . . . . 1 . 1 . . . 2 . 1 . . . . Report Inventory 6 | . 1 . . . . . 1 . . . . . 1 . 1 . . . 1 . 1 . . . . Retrieve Components 2 | . 1 . . . . . . . . . . . . . . . . . 1 . . . . . . Scanalyzer 3 | . . . . . . . . . 2 . . . 1 . . . . . . . . . . . . Retrieve Study 3 | . . . . . . . . . 2 . . . 1 . . . . . . . . . . . . Garrison Access Hacks 16 | . . . . . 1 . 1 . 1 . 1 . 1 . 1 . 2 . 1 . 2 . . . 5 Unlock Access 8 | . . . . . 1 . 1 . 1 . 1 . 1 . 1 . . . 1 . 1 . . . . Seal Access 4 | . . . . . . . . . . . . . . . . . 1 . . . . . . . 3 Coupler Status 4 | . . . . . . . . . . . . . . . . . 1 . . . 1 . . . 2 Unauthorized Hacks 23 | . 6 . . . 3 . 5 . 4 . 1 . . . 1 . 1 . 1 . 1 . . . . Terminals 22 | . 6 . . . 3 . 5 . 4 . 1 . . . 1 . 1 . 1 . . . . . . Assimilate 3 | . 1 . . . . . 2 . . . . . . . . . . . . . . . . . . Botnet 11 | . 1 . . . 2 . 3 . 2 . 1 . . . . . 1 . 1 . . . . . . Operators 2 | . . . . . . . . . 1 . . . . . 1 . . . . . . . . . . Skim 6 | . 4 . . . 1 . . . 1 . . . . . . . . . . . . . . . . Fabricators . | . . . . . . . . . . . . . . . . . . . . . . . . . . Repair Stations . | . . . . . . . . . . . . . . . . . . . . . . . . . . Recycling Units . | . . . . . . . . . . . . . . . . . . . . . . . . . . Scanalyzers . | . . . . . . . . . . . . . . . . . . . . . . . . . . Garrison Access 1 | . . . . . . . . . . . . . . . . . . . . . 1 . . . . Reprogram 1 | . . . . . . . . . . . . . . . . . . . . . 1 . . . . Data Cores Recovered 1 | . . . . . . . 1 . . . . . . . . . . . . . . . . . . Used . | . . . . . . . . . . . . . . . . . . . . . . . . . . Hacking Detections 81 | . 8 . . . 3 2 12 2 11 2 4 1 1 2 5 2 4 . 3 3 4 1 . . 11 Full Trace Events 4 | . 1 . . . . . . 1 . . . . . . 1 . . . 1 . . . . . . Feedback Events 1 | . . . . . . . . . . . . . . . . . . . 1 . . . . . . Corruption 1 | . . . . . . . . . . . . . . . . . . . 1 . . . . . . Feedback Blocked . | . . . . . . . . . . . . . . . . . . . . . . . . . . Robot Schematics Acquired . | . . . . . . . . . . . . . . . . . . . . . . . . . . Robots Built . | . . . . . . . . . . . . . . . . . . . . . . . . . . Authchips . | . . . . . . . . . . . . . . . . . . . . . . . . . . Time . | . . . . . . . . . . . . . . . . . . . . . . . . . . Total Robot Build Rating . | . . . . . . . . . . . . . . . . . . . . . . . . . . Part Schematics Acquired 1 | . . . . . . . 1 . . . . . . . . . . . . . . . . . . Parts Built . | . . . . . . . . . . . . . . . . . . . . . . . . . . Authchips . | . . . . . . . . . . . . . . . . . . . . . . . . . . Time . | . . . . . . . . . . . . . . . . . . . . . . . . . . Total Part Build Rating . | . . . . . . . . . . . . . . . . . . . . . . . . . . Part Studies Acquired 3 | . . . . . . . . . 2 . . . 1 . . . . . . . . . . . . Parts Repaired 7 | . 1 . . . 1 . 2 . 1 . 1 . . . 1 . . . . . . . . . . Time 221 | . 26 . . . 19 . 88 . 22 . 22 . . . 44 . . . . . . . . . . Parts Recycled . | . . . . . . . . . . . . . . . . . . . . . . . . . . Recycled Matter . | . . . . . . . . . . . . . . . . . . . . . . . . . . Retrieved Matter . | . . . . . . . . . . . . . . . . . . . . . . . . . . Retrieved Components 11 | . 9 . . . . . . . . . . . . . . . . . 2 . . . . . . Parts Scanalyzed . | . . . . . . . . . . . . . . . . . . . . . . . . . . Part Schematics Acquired . | . . . . . . . . . . . . . . . . . . . . . . . . . . Parts Damaged . | . . . . . . . . . . . . . . . . . . . . . . . . . . Bothacking | -11 -10 -10 -10 -9 -8 -8 -7 -7 -7 -7 -6 -6 -5 -5 -5 -5 -4 -4 -4 -4 -3 -3 -2 -2 -1 ------------ Run | Yrd Mat Min Exi Min Mat Gar Fac Gar Fac Gar Fac Gar Fac Gar Fac Gar Fac Was Fac Gar Res Gar Res Tes Acc Used RIF Installer 9 | . . . . . . 2 . 1 . 1 . 1 . 1 . 1 . . . 1 . 1 . . . Code Merge 1 | . . . . . . . . . . . . . . 1 . . . . . . . . . . . Signal Jammer 1 | . . . . . . . . . . . . 1 . . . . . . . . . . . . . Zone Cloak 2 | . . . . . . . . . . . . . . . . 1 . . . 1 . . . . . Robot Detection 1 | . . . . . . . . . . 1 . . . . . . . . . . . . . . . Watcher Feeds 1 | . . . . . . 1 . . . . . . . . . . . . . . . . . . . Alert ID Control 1 | . . . . . . . . . . . . . . . . . . . . . . 1 . . . Structural Interface 1 | . . . . . . . . 1 . . . . . . . . . . . . . . . . . Robots Hacked 161 | . . . . . . . 4 9 2 19 6 11 1 8 15 10 20 6 3 17 8 12 7 . 3 Non-combat 11 | . . . . . . . 2 . . . . . . . 2 . 3 . 1 . . . 1 . 2 Combat 150 | . . . . . . . 2 9 2 19 6 11 1 8 13 10 17 6 2 17 8 12 6 . 1 Robot Hacks Applied 171 | . . . . . . . 5 9 2 21 6 11 1 8 17 11 22 6 3 18 9 12 7 . 3 parse_system 5 | . . . . . . . . . . . . . . . 1 1 2 . . 1 . . . . . no_distress 2 | . . . . . . . 1 . . . . . . . 1 . . . . . . . . . . find_chute 1 | . . . . . . . . . . . . . . . . . 1 . . . . . . . . deconstruct_machine 1 | . . . . . . . . . . . . . . . . . 1 . . . . . . . . drop_inventory 6 | . . . . . . . 2 . . . . . . . 1 . . . 1 . . . . . 2 map_route 1 | . . . . . . . . . . . . . . . 1 . . . . . . . . . . ignore_targets 6 | . . . . . . . . . . . . . . . . . . 6 . . . . . . . scatter_targeting 1 | . . . . . . . . . . . . . . . . . . . . 1 . . . . . overload_power 7 | . . . . . . . . . . 2 3 . . . . 1 . . . . . 1 . . . disable_weapons 12 | . . . . . . . . . . 3 1 1 . 1 . 1 . . . 3 1 1 . . . reboot_system 1 | . . . . . . . . . . . . . . . 1 . . . . . . . . . . go_dormant 2 | . . . . . . . . . . . . 1 . . . 1 . . . . . . . . . overwrite_iff 27 | . . . . . . . 2 1 . 1 1 . . . 3 1 8 . 2 2 3 2 1 . . formatsys_low 1 | . . . . . . . . . . . . . . . . . 1 . . . . . . . . formatsys_high 97 | . . . . . . . . 8 2 15 1 9 1 7 8 6 9 . . 11 5 8 6 . 1 formatsys_deep 1 | . . . . . . . . . . . . . . . 1 . . . . . . . . . . Relay Couplers Released 123 | . . . . . . 14 . 13 . 17 . 21 . 17 . 14 . . . 14 . 13 . . . Machine Destruction 123 | . . . . . . 14 . 13 . 17 . 21 . 17 . 14 . . . 14 . 13 . . . Attached 84 | . . . . . . . 2 6 1 9 1 8 2 5 5 7 6 1 . 8 5 8 10 . . Merged Code Value 182 | . . . . . . . . . . . . . . 47 . 80 . . . 41 . 14 . . . Fabnet Peak Effective % . | . . . . . . . . . . . . . . . . . . . . . . . . . . Robots Rewired 31 | . . . . . . 5 . 3 . 4 . 3 . 9 . 1 . . . . . 6 . . . Allies Hacked . | . . . . . . . . . . . . . . . . . . . . . . . . . . Hacks Repelled . | . . . . . . . . . . . . . . . . . . . . . . . . . . Allies | -11 -10 -10 -10 -9 -8 -8 -7 -7 -7 -7 -6 -6 -5 -5 -5 -5 -4 -4 -4 -4 -3 -3 -2 -2 -1 -------- Run | Yrd Mat Min Exi Min Mat Gar Fac Gar Fac Gar Fac Gar Fac Gar Fac Gar Fac Was Fac Gar Res Gar Res Tes Acc Total Allies 166 | . 1 1 . . . 5 3 12 2 19 2 12 1 20 13 10 18 . 2 13 7 17 7 . 1 Largest Group 15 | . 1 1 . . . 3 2 5 5 13 10 6 7 15 10 5 7 . 1 6 2 10 3 . 1 Highest-Rated Group 635 | . 10 31 . . . 64 32 103 119 256 208 254 303 635 441 339 385 . 12 251 120 446 174 . 183 Highest-Rated Ally 183 | . 10 31 . . . 39 16 31 32 32 32 116 106 95 49 116 116 . 12 49 64 116 58 . 183 Total Orders 22 | . . . . . 1 . . . . 4 . . 2 2 1 . . . . 4 . 8 . . . STAY 12 | . . . . . . . . . . 2 . . 1 1 1 . . . . 3 . 4 . . . FOLLOW 8 | . . . . . . . . . . 2 . . 1 . . . . . . 1 . 4 . . . AID 1 | . . . . . . . . . . . . . . 1 . . . . . . . . . . . RETURN 1 | . . . . . 1 . . . . . . . . . . . . . . . . . . . . Ally Attacks 1009 | . . 4 . . 8 27 7 33 24 66 50 47 4 188 104 84 98 . 8 95 39 83 29 . 11 Total Damage 27238 | . . 62 . . . 284 81 419 512 1569 732 1759 82 6011 1799 2909 3150 . 49 2200 1138 2577 1086 . 819 Kills 210 | . . . . . . 4 1 3 4 11 10 15 . 44 13 23 34 . . 17 6 19 2 . 4 Allies Corrupted 8 | . . . . . . . . . 1 . . . . 1 3 . 1 . . . . 1 1 . . Allies Melted 2 | . . . . . . . . . . . . 1 . . . . . . . . . 1 . . . Intel | -11 -10 -10 -10 -9 -8 -8 -7 -7 -7 -7 -6 -6 -5 -5 -5 -5 -4 -4 -4 -4 -3 -3 -2 -2 -1 ------- Run | Yrd Mat Min Exi Min Mat Gar Fac Gar Fac Gar Fac Gar Fac Gar Fac Gar Fac Was Fac Gar Res Gar Res Tes Acc Active Infowar (turns) 13217 | 44 328 209 . . 886 . . . . . . . . . . . 1175 1079 1127 1862 1289 4643 574 . 1 Optics 11749 | . . . . . . . . . . . . . . . . . 1175 1079 1127 1862 1289 4643 574 . . Seismic 1467 | 44 328 209 . . 886 . . . . . . . . . . . . . . . . . . . . ECM 1 | . . . . . . . . . . . . . . . . . . . . . . . . . 1 Robot Analysis Total 3 | . 3 . . . . . . . . . . . . . . . . . . . . . . . . Derelict Logs Recovered 1 | . . 1 . . . . . . . . . . . . . . . . . . . . . . . Drone Launches 17 | . . . . . 9 8 . . . . . . . . . . . . . . . . . . . Drone Recoveries 1 | . . . . . 1 . . . . . . . . . . . . . . . . . . . . Exploration | -11 -10 -10 -10 -9 -8 -8 -7 -7 -7 -7 -6 -6 -5 -5 -5 -5 -4 -4 -4 -4 -3 -3 -2 -2 -1 ------------- Run | Yrd Mat Min Exi Min Mat Gar Fac Gar Fac Gar Fac Gar Fac Gar Fac Gar Fac Was Fac Gar Res Gar Res Tes Acc Turns Passed 36855 | 122 1140 1219 623 611 1589 2372 2065 1855 1097 1850 1663 2249 180 2195 1242 1705 1202 1079 1127 1862 1289 4643 588 91 1197 Spaces Moved 18706 | 57 472 669 389 294 598 907 1088 1033 640 1033 939 1205 102 1092 617 921 658 455 492 901 587 1499 180 108 1770 Core 1562 | 3 . . . . . . . . . . . . . . . . . . . . 1 1 41 108 1408 Treads 2956 | 54 472 669 389 294 598 468 . . . . . . . . . . 11 . 1 . . . . . . Legs 1493 | . . . . . . . . . . . . . . . . . . . . . . 1354 139 . . Wheels 12333 | . . . . . . 439 1088 1033 640 1033 939 1205 102 1092 617 921 647 455 491 901 586 144 . . . Hover . | . . . . . . . . . . . . . . . . . . . . . . . . . . Flight 362 | . . . . . . . . . . . . . . . . . . . . . . . . . 362 Fastest Speed 40 | 50 160 160 160 160 160 145 145 145 135 135 150 135 150 150 150 135 135 150 150 150 145 145 50 50 40 Average Speed 155 | 154 160 160 160 160 208 204 145 150 143 140 150 143 150 152 155 149 147 150 173 167 159 261 212 50 52 Slowest Speed 2150 | 160 160 160 160 160 325 330 145 160 145 150 150 150 150 165 165 150 385 165 330 180 2150 2150 330 50 150 Overloaded Moves . | . . . . . . . . . . . . . . . . . . . . . . . . . . Propulsion Burnouts . | . . . . . . . . . . . . . . . . . . . . . . . . . . Robots Hopped 2 | . . . . . . . . . . . . . . . . . . . . . . 2 . . . Potential Cave-ins . | . . . . . . . . . . . . . . . . . . . . . . . . . . Cave-ins Triggered . | . . . . . . . . . . . . . . . . . . . . . . . . . . Exploration Rate (%) 56 | 5 87 94 85 62 63 68 32 91 27 99 28 95 4 97 17 97 21 100 21 83 20 81 12 17 56 Regions Visited 25 Branch Regions 4 Pre-discovered Areas 2 | . . 1 1 . . . . . . . . . . . . . . . . . . . . . . Known Exits Taken 9 | . . . . . 1 . 1 . 1 . 1 . 1 . 1 . . . 1 . 1 . 1 . . Unknown Exits Taken 6 | 1 1 1 1 1 . . . . . . . . . . . . . . . . . . . 1 . Scrap Searched 3 | . . 3 . . . . . . . . . . . . . . . . . . . . . . . Spaces Dug 168 | . 9 5 . 2 5 . 14 . 5 1 1 1 . 2 5 3 61 9 13 . 7 15 3 2 5 Terrain Destroyed 487 | . 10 7 . 4 44 20 15 51 5 15 38 34 . 2 24 5 66 9 29 7 24 33 3 2 40 Melee 56 | . . . . . . . 14 . 5 . . . . 2 2 . 9 9 6 . 1 . 1 2 5 Projectile 194 | . 10 7 . 4 21 . 1 4 . 15 4 3 . . 22 5 10 . 23 7 23 33 2 . . AOE 237 | . . . . . 23 20 . 47 . . 34 31 . . . . 47 . . . . . . . 35 Terrain Rammed . | . . . . . . . . . . . . . . . . . . . . . . . . . . Walls Destroyed . | . . . . . . . . . . . . . . . . . . . . . . . . . . Machines Disabled . | . . . . . . . . . . . . . . . . . . . . . . . . . . Actions | -11 -10 -10 -10 -9 -8 -8 -7 -7 -7 -7 -6 -6 -5 -5 -5 -5 -4 -4 -4 -4 -3 -3 -2 -2 -1 --------- Run | Yrd Mat Min Exi Min Mat Gar Fac Gar Fac Gar Fac Gar Fac Gar Fac Gar Fac Was Fac Gar Res Gar Res Tes Acc Total 24953 | 74 696 760 391 387 850 1252 1496 1267 786 1364 1168 1681 127 1546 839 1181 827 802 703 1194 878 2143 383 134 2024 Wait 3583 | . 99 50 . 66 135 123 284 69 109 154 171 252 21 276 122 74 58 310 102 163 208 386 126 20 205 Move 18682 | 56 471 668 388 293 597 906 1088 1032 640 1032 938 1204 102 1091 617 920 658 454 491 900 586 1495 179 107 1769 Hop 1 | . . . . . . . . . . . . . . . . . . . . . . 1 . . . Pick Up 269 | 3 16 4 1 . 18 26 15 18 . 14 6 29 . 10 7 25 8 1 12 21 5 27 1 . 2 Fast Attach 125 | 7 1 . . 1 7 5 5 5 5 6 4 2 1 5 6 10 8 1 8 2 4 18 4 1 9 Attach 237 | . 1 1 . 2 8 14 8 13 1 12 7 24 1 6 11 15 13 1 11 16 14 30 21 . 7 Detach 64 | . . . . . 2 4 . 4 1 4 . 2 . 1 1 4 6 1 2 3 4 13 6 . 6 Swap 144 | 1 14 6 . 2 11 15 8 12 3 10 3 12 1 11 1 7 7 1 3 5 . 6 4 . 1 Drop 258 | . 8 4 2 1 18 12 17 24 6 12 8 16 . 9 7 21 4 2 19 16 4 22 21 . 5 Fire 1097 | 7 86 25 . 22 54 128 28 51 5 70 23 40 1 81 65 50 53 7 44 66 49 118 19 . 5 Melee 157 | . . . . . . . 27 15 16 . 1 2 . 8 2 15 12 24 11 2 3 2 2 6 9 Ram 1 | . . . . . . . . . . . . . . . . . . . . . 1 . . . . Kick . | . . . . . . . . . . . . . . . . . . . . . . . . . . Crush 2 | . . 2 . . . . . . . . . . . . . . . . . . . . . . . Escape Stasis 272 | . . . . . . 2 16 24 . 40 7 64 . 48 . 40 . . . . . 25 . . 6 Rewire 61 | . . . . . . 17 . . . 10 . 34 . . . . . . . . . . . . . Trap . | . . . . . . . . . . . . . . . . . . . . . . . . . . Miscellaneous . | . . . . . . . . . . . . . . . . . . . . . . . . . . Route ------- -11/Scrapyard -10/Materials (discovered 4 exits: [*Mat x2] / *Min x2) -10/Mines (discovered 4 exits: [*Mat x2] / *Exi / [*Sub]) -10/Exiles -9/Mines -8/Materials (discovered 2 exits: [*Sto] / Gar) -8/Garrison (discovered 3 exits: *Fac x3) -7/Factory (discovered 4 exits: *Fac x3 / Gar) -7/Garrison (discovered 3 exits: *Fac x3) -7/Factory -7/Garrison (discovered 3 exits: *Fac x3) -6/Factory -6/Garrison (discovered 3 exits: *Fac x3) -5/Factory -5/Garrison (discovered 4 exits: *Fac x4) -5/Factory -5/Garrison (discovered 3 exits: *Fac x3) -4/Factory (discovered 2 exits: [*Ext] / [*Arm]) -4/Waste -4/Factory -4/Garrison (discovered 3 exits: *Res x3) -3/Research -3/Garrison (discovered 3 exits: *Res x3) -2/Research -2/Testing -1/Access (discovered 2 exits: [*Sur] / Com) To Epsilon Eridani History --------- Turn | Location | Event 9 | -11/Scrapyard | Discovered new exit (range 15) 123 | -11/Scrapyard | Entered Materials 309 | -10/Materials | Build established: Mutant 332 | -10/Materials | Discovered new exit (range 11) 419 | -10/Materials | Discovered new exit (range 14) 858 | -10/Materials | Discovered new exit (range 15) 1182 | -10/Materials | Repaired Lgt. Armor Plating 1235 | -10/Materials | Discovered new exit (range 13) 1263 | -10/Materials | Entered Mines 1264 | -10/Mines | Met a Derelict testing a Signal Generator 1360 | -10/Mines | Discovered new exit (range 7) 1895 | -10/Mines | Learned location of Storage (-8) 1952 | -10/Mines | Discovered new exit (range 6) 2043 | -10/Mines | Discovered new exit (range 13) 2105 | -10/Mines | Deemed a non-threat by the Exiles lab entrance 2181 | -10/Mines | Discovered new exit (range 9) 2223 | -10/Mines | Learned Materials terminal intel 2289 | -10/Mines | Found a hidden stash of uninstalled traps 2383 | -10/Mines | Found the Drone Emporium 2414 | -10/Mines | Found Prototype Device 2482 | -10/Mines | Entered Exiles 2522 | -10/Exiles | Met 8R-AWN 2548 | -10/Exiles | Met EX-HEX 2598 | -10/Exiles | Met EX-BIN 2617 | -10/Exiles | Aligned with FarCom system 2618 | -10/Exiles | Given EX-Vault access code 2658 | -10/Exiles | Opened EX-Vault 2671 | -10/Exiles | Found AWS/Gauss 2702 | -10/Exiles | Warned to stay clear of 0b10 Research branches 2748 | -10/Exiles | Met EX-DEC 2756 | -10/Exiles | Learned location of Zion (-7) 2877 | -10/Exiles | Visited The Gauntlet 3084 | -10/Exiles | Discovered new exit (range 15) 3105 | -10/Exiles | Left Exiles lab with AWS/Gauss 3105 | -10/Exiles | Entered Mines 3154 | -9/Mines | Core integrity fell below 50% 3328 | -9/Mines | Assembled infested the area 3333 | -9/Mines | Assisted by a Guerilla fighting off Assembled 3701 | -9/Mines | Discovered new exit (range 10) 3716 | -9/Mines | Entered Materials 3716 | -8/Materials | Evolved 4 slots: Utility x4 3716 | -8/Materials | Identified Bomb Drone Bay 3717 | -8/Materials | Loaded intel: 11 terminal locations 3826 | -8/Materials | Discovered new exit (range 17) 3943 | -8/Materials | Lost 6 allies 4012 | -8/Materials | Build established: Scavenger-Mutant 4177 | -8/Materials | Garrison activated, responded to threat 4366 | -8/Materials | Build established: Hacker-Mutant 4700 | -8/Materials | Repaired Insulated Plating 5276 | -8/Materials | Identified exit to Garrison 5305 | -8/Materials | Entered Garrison 5421 | -8/Garrison | Triggered checkpoint 5697 | -8/Garrison | Triggered checkpoint 5717 | -8/Garrison | Triggered checkpoint 5771 | -8/Garrison | Lost 3 parts (1p1n1u) 5897 | -8/Garrison | Discovered new exit (range 12) 6119 | -8/Garrison | Installed Relay Interface Framework 6407 | -8/Garrison | Triggered checkpoint 6489 | -8/Garrison | Garrison Relay disabled 6539 | -8/Garrison | Triggered checkpoint 6615 | -8/Garrison | Build established: Scavenger-Mutant 7133 | -8/Garrison | Expanded RIF knowledge: Watcher Feeds 7171 | -8/Garrison | Garrison Relay disabled 7279 | -8/Garrison | Discovered new exit (range 10) 7311 | -8/Garrison | Triggered checkpoint 7393 | -8/Garrison | Triggered checkpoint 7393 | -8/Garrison | Garrison Relay disabled 7402 | -8/Garrison | Core integrity fell below 50% 7429 | -8/Garrison | Discovered new exit (range 84) 7429 | -8/Garrison | Discovered new exit (range 12) 7429 | -8/Garrison | Discovered new exit (range 55) 7435 | -8/Garrison | Lost 3 parts (1p1u1w) 7435 | -8/Garrison | Lost 7 allies 7548 | -8/Garrison | P-60 Hacker assimilated allied Bruiser 3a 7578 | -8/Garrison | Destroyed 7 combat bots 7677 | -8/Garrison | Entered Factory 7677 | -7/Factory | Evolved 2 slots: Utility x2 7864 | -7/Factory | Build established: Bothacker-Mutant 8335 | -7/Factory | Discovered new exit (range 23) 8398 | -7/Factory | Discovered new exit (range 16) 8837 | -7/Factory | Discovered new exit (range 16) 9075 | -7/Factory | Repaired Arm. Huge Wheel 9120 | -7/Factory | Repaired Arm. Huge Wheel 9742 | -7/Factory | Identified exit to Garrison 9742 | -7/Factory | Entered Garrison 9812 | -7/Garrison | Triggered checkpoint 9844 | -7/Garrison | Triggered checkpoint 9906 | -7/Garrison | Triggered checkpoint 10046 | -7/Garrison | Triggered checkpoint 10115 | -7/Garrison | Discovered new exit (range 13) 10265 | -7/Garrison | Expanded RIF knowledge: Structural Interface 10448 | -7/Garrison | Discovered new exit (range 82) 10448 | -7/Garrison | Discovered new exit (range 54) 10448 | -7/Garrison | Discovered new exit (range 15) 10460 | -7/Garrison | Triggered checkpoint 10481 | -7/Garrison | Garrison Relay disabled 10680 | -7/Garrison | Triggered checkpoint 10700 | -7/Garrison | Garrison Relay disabled 10826 | -7/Garrison | Triggered checkpoint 10880 | -7/Garrison | Garrison Relay disabled 11597 | -7/Garrison | Entered Factory 11597 | -7/Factory | Accompanied by 5 allies 11924 | -7/Factory | Found Prototype Launcher 11924 | -7/Factory | Identified Rocket Array 12095 | -7/Factory | Lost 3 allies 12666 | -7/Factory | Repaired Arm. Huge Wheel+ 12694 | -7/Factory | Identified exit to Garrison 12694 | -7/Factory | Entered Garrison 12732 | -7/Garrison | Expanded RIF knowledge: Robot Detection 12750 | -7/Garrison | Triggered checkpoint 12783 | -7/Garrison | Garrison Relay disabled 12908 | -7/Garrison | Triggered checkpoint 12954 | -7/Garrison | Triggered checkpoint 12972 | -7/Garrison | Lost 3 allies 13031 | -7/Garrison | Garrison Relay disabled 13032 | -7/Garrison | Build established: Botlord-Mutant 13260 | -7/Garrison | Discovered new exit (range 14) 13394 | -7/Garrison | Triggered checkpoint 13492 | -7/Garrison | Triggered checkpoint 13552 | -7/Garrison | Discovered new exit (range 11) 13696 | -7/Garrison | Triggered checkpoint 13703 | -7/Garrison | Garrison Relay disabled 13922 | -7/Garrison | Triggered checkpoint 14000 | -7/Garrison | Garrison Relay disabled 14119 | -7/Garrison | Discovered new exit (range 12) 14305 | -7/Garrison | P-60 Hacker assimilated allied Trooper 4l 14315 | -7/Garrison | P-60 Hacker assimilated allied Trooper 4o 14544 | -7/Garrison | Entered Factory 14544 | -6/Factory | Accompanied by 10 allies 14544 | -6/Factory | Evolved 2 slots: Utility x2 14905 | -6/Factory | Repaired Arm. Huge Wheel+ 15383 | -6/Factory | Lost 3 allies 15614 | -6/Factory | Lost 3 allies 15872 | -6/Factory | Found Hvy. Reflective Plating 16197 | -6/Factory | Identified exit to Garrison 16207 | -6/Factory | Entered Garrison 16323 | -6/Garrison | Triggered checkpoint 16378 | -6/Garrison | Garrison Relay disabled 16408 | -6/Garrison | Spotted B-75 Beast 16434 | -6/Garrison | Assimilated Beast 5a with formatsys_high 16517 | -6/Garrison | Triggered checkpoint 16806 | -6/Garrison | Discovered new exit (range 12) 16823 | -6/Garrison | Triggered checkpoint 17020 | -6/Garrison | Garrison Relay disabled 17050 | -6/Garrison | Discovered new exit (range 8) 17055 | -6/Garrison | Heavy support dispatched to Factory 17068 | -6/Garrison | Spotted B-86 Titan 17224 | -6/Garrison | Assimilated Titan 5a with formatsys_high 17287 | -6/Garrison | Triggered checkpoint 17322 | -6/Garrison | Lost 3 parts (1p2u) 17339 | -6/Garrison | Triggered checkpoint 17389 | -6/Garrison | Triggered checkpoint 17428 | -6/Garrison | Discovered new exit (range 15) 17459 | -6/Garrison | Expanded RIF knowledge: Signal Jamming 17475 | -6/Garrison | Heavy support dispatched to Factory 17577 | -6/Garrison | Garrison Relay disabled 17652 | -6/Garrison | H-XX Assembler disabled 17883 | -6/Garrison | Triggered checkpoint 17906 | -6/Garrison | Garrison Relay disabled 18113 | -6/Garrison | Triggered checkpoint 18175 | -6/Garrison | Garrison Relay disabled 18287 | -6/Garrison | Triggered checkpoint 18456 | -6/Garrison | Entered Factory 18456 | -5/Factory | Accompanied by 6 allies 18456 | -5/Factory | Evolved 2 slots: Utility x2 18626 | -5/Factory | Identified exit to Garrison 18636 | -5/Factory | Entered Garrison 18636 | -5/Garrison | Accompanied by 6 allies 18658 | -5/Garrison | Found embedded Infiltrators 18706 | -5/Garrison | Rescued a captive Derelict 18707 | -5/Garrison | Rescued a captive Derelict 18807 | -5/Garrison | Spotted B-75 Beast 18810 | -5/Garrison | Triggered checkpoint 18811 | -5/Garrison | Assimilated Beast 6a with formatsys_high 18822 | -5/Garrison | Triggered checkpoint 18840 | -5/Garrison | Triggered checkpoint 18864 | -5/Garrison | Triggered checkpoint 18900 | -5/Garrison | Lost 4 allies 19160 | -5/Garrison | Triggered checkpoint 19195 | -5/Garrison | Garrison Relay disabled 19252 | -5/Garrison | Triggered checkpoint 19288 | -5/Garrison | Discovered new exit (range 3) 19319 | -5/Garrison | Discovered new exit (range 10) 19605 | -5/Garrison | Triggered checkpoint 19628 | -5/Garrison | Discovered new exit (range 15) 19650 | -5/Garrison | Expanded RIF knowledge: Code Merge 19740 | -5/Garrison | Triggered checkpoint 19782 | -5/Garrison | Garrison Relay disabled 19912 | -5/Garrison | Triggered checkpoint 19952 | -5/Garrison | Garrison Relay disabled 20206 | -5/Garrison | Garrison Relay disabled 20292 | -5/Garrison | Triggered checkpoint 20314 | -5/Garrison | Spotted Executioner 20331 | -5/Garrison | Discovered new exit (range 14) 20508 | -5/Garrison | Triggered checkpoint 20538 | -5/Garrison | Triggered checkpoint 20573 | -5/Garrison | Lost 7 allies 20600 | -5/Garrison | Triggered checkpoint 20831 | -5/Garrison | Entered Factory 20831 | -5/Factory | Accompanied by 10 allies 21264 | -5/Factory | P-70 Sage assimilated allied Disruptor 6c 21292 | -5/Factory | Lost 8 allies 21431 | -5/Factory | First assault squad dispatched 21609 | -5/Factory | Lost 3 allies 21877 | -5/Factory | Assimilated Heavy ARC 6a with formatsys_deep 21902 | -5/Factory | Lost 5 allies 22038 | -5/Factory | Repaired Arm. Huge Wheel+ 22067 | -5/Factory | Identified exit to Garrison 22073 | -5/Factory | Entered Garrison 22142 | -5/Garrison | AWS/Gauss suddenly broke down 22471 | -5/Garrison | Triggered checkpoint 22524 | -5/Garrison | Garrison Relay disabled 22621 | -5/Garrison | Triggered checkpoint 22635 | -5/Garrison | Triggered checkpoint 22730 | -5/Garrison | Lost 3 parts (3u) 22771 | -5/Garrison | Spotted B-75 Beast 22775 | -5/Garrison | Discovered new exit (range 10) 22780 | -5/Garrison | Assimilated Beast 6b with formatsys_high 22807 | -5/Garrison | Rewired B-86 Titan 22872 | -5/Garrison | Expanded RIF knowledge: Zone Cloak 22974 | -5/Garrison | Garrison Relay disabled 23154 | -5/Garrison | Garrison Relay disabled 23225 | -5/Garrison | Discovered new exit (range 15) 23351 | -5/Garrison | Triggered checkpoint 23393 | -5/Garrison | Triggered checkpoint 23504 | -5/Garrison | Rescued a captive Derelict 23506 | -5/Garrison | Rescued a captive Derelict 23526 | -5/Garrison | Discovered new exit (range 11) 23527 | -5/Garrison | Triggered checkpoint 23569 | -5/Garrison | Garrison Relay disabled 23690 | -5/Garrison | Found Relay Coupler [Proto] 23695 | -5/Garrison | Found Relay Coupler [Proto] 23701 | -5/Garrison | Found Relay Coupler [Proto] 23778 | -5/Garrison | Entered Factory 23778 | -4/Factory | Accompanied by 3 allies 23778 | -4/Factory | Evolved 2 slots: Utility x2 23922 | -4/Factory | Garrison activated, responded to threat 24649 | -4/Factory | Lost 3 allies 24721 | -4/Factory | Discovered new exit (range 16) 24778 | -4/Factory | First assault squad dispatched 24781 | -4/Factory | Lost 4 allies 24910 | -4/Factory | Discovered new exit (range 32) 24980 | -4/Factory | Sucked down chute 24980 | -4/Factory | Entered Waste 24995 | -4/Waste | Spotted C-40 Crusher 25008 | -4/Waste | Spotted C-40 Crusher 25036 | -4/Waste | Spotted C-40 Crusher 25044 | -4/Waste | Spotted C-40 Crusher 25056 | -4/Waste | Spotted C-40 Crusher 25092 | -4/Waste | Spotted C-40 Crusher 25239 | -4/Waste | Discovered new exit (range 14) 25794 | -4/Waste | Destroyed C-40 Crusher 25803 | -4/Waste | Found Damper Plating 26059 | -4/Waste | Entered Factory 26995 | -4/Factory | Found Unknown Protection 26995 | -4/Factory | Identified Hvy. Insulated Plating 26998 | -4/Factory | Found Hvy. Insulated Plating 27104 | -4/Factory | Found Hvy. Insulated Plating 27176 | -4/Factory | Identified exit to Garrison 27186 | -4/Factory | Entered Garrison 27264 | -4/Garrison | Expanded RIF knowledge: Zone Cloak 27277 | -4/Garrison | Spotted B-86 Titan 27496 | -4/Garrison | Triggered checkpoint 27573 | -4/Garrison | Garrison Relay disabled 27702 | -4/Garrison | Triggered checkpoint 27780 | -4/Garrison | Discovered new exit (range 19) 27780 | -4/Garrison | Discovered new exit (range 49) 27780 | -4/Garrison | Discovered new exit (range 56) 27818 | -4/Garrison | Triggered checkpoint 27843 | -4/Garrison | Garrison Relay disabled 28042 | -4/Garrison | Triggered checkpoint 28053 | -4/Garrison | Triggered checkpoint 28080 | -4/Garrison | Triggered checkpoint 28133 | -4/Garrison | Lost 5 allies 28551 | -4/Garrison | Learned Research security intel 28560 | -4/Garrison | Triggered checkpoint 28581 | -4/Garrison | Garrison Relay disabled 28908 | -4/Garrison | Triggered checkpoint 28918 | -4/Garrison | Garrison Relay disabled 29048 | -4/Garrison | Entered Research 29048 | -3/Research | Accompanied by 2 allies 29048 | -3/Research | Evolved 2 slots: Utility x2 29233 | -3/Research | Found Quantum Capacitor 30083 | -3/Research | Found Prototype Processor 30083 | -3/Research | Identified Exp. Signal Interpreter 30298 | -3/Research | First assault squad dispatched 30322 | -3/Research | Identified exit to Garrison 30337 | -3/Research | Entered Garrison 30337 | -3/Garrison | Accompanied by 2 allies 30484 | -3/Garrison | Lost 3 parts (1p1n1u) 30601 | -3/Garrison | Triggered checkpoint 30892 | -3/Garrison | Garrison Relay disabled 31025 | -3/Garrison | Rescued a captive Derelict 31489 | -3/Garrison | Triggered checkpoint 31489 | -3/Garrison | Spotted B-86 Titan 31502 | -3/Garrison | Triggered checkpoint 31543 | -3/Garrison | Lost 4 allies 31588 | -3/Garrison | Lost 3 parts (3u) 31807 | -3/Garrison | Discovered new exit (range 11) 31947 | -3/Garrison | Triggered checkpoint 32021 | -3/Garrison | Garrison Relay disabled 33088 | -3/Garrison | Discovered new exit (range 21) 33350 | -3/Garrison | Garrison Relay disabled 33453 | -3/Garrison | Triggered checkpoint 33475 | -3/Garrison | Triggered checkpoint 33667 | -3/Garrison | Discovered new exit (range 53) 33667 | -3/Garrison | Discovered new exit (range 6) 33667 | -3/Garrison | Discovered new exit (range 63) 33957 | -3/Garrison | Triggered checkpoint 34453 | -3/Garrison | Found Adv. Powered Armor 34457 | -3/Garrison | Found Adv. Powered Armor 34464 | -3/Garrison | Found Adv. Powered Armor 34478 | -3/Garrison | Spotted B-86 Titan 34559 | -3/Garrison | Triggered checkpoint 34598 | -3/Garrison | Lost 3 allies 34650 | -3/Garrison | Expanded RIF knowledge: Alert ID Control 34980 | -3/Garrison | Entered Research 34980 | -2/Research | Accompanied by 3 allies 34980 | -2/Research | Evolved 2 slots: Utility x2 35130 | -2/Research | Unchained authorized (DW-4LL) 35170 | -2/Research | Exiles provided nearest exit location to -2/Testing 35230 | -2/Research | First assault squad dispatched 35321 | -2/Research | Lost 4 allies 35446 | -2/Research | DW-4LL burst out of a wall 35455 | -2/Research | System corruption reached 10% 35460 | -2/Research | System corruption reached 30% 35490 | -2/Research | Lost 10 parts (8u2w) 35539 | -2/Research | Spotted B-90 Cyclops 35568 | -2/Research | Entered Testing 35569 | -2/Testing | Maximum security lockdown engaged 35613 | -2/Testing | Found Prototype Device 35613 | -2/Testing | Identified 2N-1CE's Frost Array 35631 | -2/Testing | Discovered new exit (range 16) 35659 | -2/Testing | Entered Access 35659 | -1/Access | Evolved 2 slots: Utility x2 35917 | -1/Access | Found Prototype Launcher 35917 | -1/Access | Identified Adv. Micro-nuke Launcher 36491 | -1/Access | Lost 3 parts (2u1w) 36500 | -1/Access | Spotted B-99 Colossus 36690 | -1/Access | Identified exit to Command 36854 | -1/Access | Discovered new exit (range 6) 36856 | *** | Escaped! Last Messages --------------- Map updated. 36704_ RIF reveals location of hidden door. 36718_ Detecting nearby Garrison Access. 36718_ Triggered Stasis Trap. 36718_ A bubble of rippling energy engulfs the area. 36718_ Field strength at 87. 36718_ Field strength at 74. 36719_ Field strength at 61. 36720_ Field strength at 48. 36721_ Field strength at 35. 36722_ Field strength at 22. 36723_ Field strength at 9. 36724_ Stasis field depleted. 36729_ Connecting with Garrison Access... 36852_ Connecting with Terminal... >>Open(Door) Sealed Barrier opened. 36854_ The Access Shell folds into the floor. 36854_ EXIT=FOUND [Achievement: Inspector Gadget] Map ----- +----------------------------------------------------+ | ???????????????????????????? * ## #? | | ????????????????????????????###?############ " #? | | ?????????????????????????????????# # #? | | ?????????????????????????????????# # #? | | ?????????????????????????????????# ## ##? | | ?????????????????????????????????# ## #?? | | ?????????????????????????????????# ## #?? | | ?????????????????????????????????# ?# ### | | ?????????????????????????????????# ???# # | | ?????????????????????????????????? ?????# # | | ??????????????######################+######## # | | ????????????? # | | ????????????? w + | | ????????????????????# ""############## # | | ????????????????????# ""#????????????# # | | ????????????????????# ""#????????????# # | | ????????????????????# T#????????????# # | | ????????????????????# ""#????????????# ### | | ????????????????????# ""#????????????# #?? | | ???????????????????## ""##???????????# #?? | | ???????????????????# #???????????# #?? | | ???????????????????## ##??########?# #?? | | ????????????????????# #???# #?# #?? | | ????????????????????# #???# #?# #?? | | ????????????????????# #???#* #?# #?? | | ????????????????????# @" #???# #?# #?? | | ????????????????????# "" #???# #?# #?? | | ????????????????????# #???# #?# #?? | | ????????????????????# #???####+##### #?? | | ????????????????????# #??????# #?? | | ????????????????????#""""""""""#??????# ^ ^ #?? | | ??????????????????????????????????????# ### | | ??????????????????????????????????????# | | ??????????????????????????????????????# | | ??????????????????????????????????????# ##+##+#### | | ??????????????????????BB????BB??????? + # | | ??????????????????????BB????BB?????? # # | | ??????????????????????????????????? # # | | ?????????????????????????????????? ?# # " " | | ?????????????????????????????????# ??# # " " | | ?????????????????????????????????##???# # ""G"" | | ??????????????????????????????????????# # | | ??????????????????????????????????????# # | | ??????????????????????????????????????? ########## | | ?????????????????????????????????????????????????? | | ?????????????????????????????????????????????????? | | ?????????????????????????????????????????????????? | | ?????????????????????????????????????????????????? | | ?????????????????????????????????????????????????? | | ?????????????????????????????????????????????????? | +----------------------------------------------------+ Best States ------------- Heat Dissipation 152 Energy Generation 31 Energy Capacity 350 Matter Stores 300 Matter Capacity 300 Sight Range 22 Terrain Scan Density 10 Power Amplification 30 Armor Coverage 1600 Resistance: TH 25 Resistance: EM 90 Core Shielding 30 Weapon Cycling 25 Evasion (%) 62 Targeting Accuracy 6 Core Analysis 6 Recoil Reduction 2 Offensive Hacking 30 Defensive Hacking 24 Relay Coupler Types 9 Relay Coupler Value 253 Item Schematics ----------------- Enh. Gauss Cannon | -7/Factory | Hacked Robot Schematics ------------------ None Fabricated ------------ Nothing Repaired ---------- Lgt. Armor Plating | 73% | -10/Materials Insulated Plating | 5% | -8/Materials Arm. Huge Wheel | 11% | -7/Factory Arm. Huge Wheel | 77% | -7/Factory Arm. Huge Wheel | 50% | -7/Factory Arm. Huge Wheel | 57% | -6/Factory Arm. Huge Wheel | 10% | -5/Factory Studied --------- Arm. Huge Wheel | -7/Factory | Hacked Remote Datajack | -7/Factory | Hacked Lgt. Angular Momentum Engine | -5/Factory | Hacked Alien Tech Used ----------------- None Achievements -------------- Analysis Probe Assassin Deep Understanding Drive-By Fancy Inventory For Science! Ghost 'Em Hack The Planet Hackerman Hornet's Nest Inspector Gadget Join The Dark Side Let Me Out Of Here Mindtrick My Bad Physics Hates This One Trick Sixth Sense Taming Of The Crushers Versatile You Will Be Upgraded Challenges ------------ None Game ------ Seed MetafieldChromionPod Manual? 0 Play Time 06:07:56 Cumulative 411.2 hours Start 2025.11.01 @ 12:12:06 End 2025.11.04 @ 07:41:40 Sessions 11 Manual Loads 0 Difficulty Rogue Special Mode None Game No. 152 Rogue 131 Adventurer 21 Explorer 0 Win Type 0 Total 20 Types 12/1/4/1/0/0/0/1/0/1 Lore% 58 Gallery% 73 Achievement% 52 Wizard Run 0 Options --------- Layout 1 ASCII 0 Keyboard 0 Movement Mouse Keybinds 0 Fullscreen 2 Font 32/SmallcapsGlow Map View 77x35 Zoom Use 0% Tactical HUD 1 Map Filters NONE Filters NONE Steam 1 RUN: 3710654d-0f00-42e8-b172-6c55cf336a41